bitfinex/quotes_SOLUSD_20251009
["timestamp","ask_amount","ask_price","bid_price","bid_amount"]
[1760045000179,33.9,219.96,219.92,21.46]
[1760045000356,38.44633605,219.96,219.92,20.8]
[1760045000672,4.54633605,219.96,219.93,0.66]
[1760045000872,33.88,219.95,219.93,0.66]
[1760045001790,11.36412292,220.0,219.94,0.67]
[1760045001959,33.86,219.99,219.94,0.67]
[1760045002159,33.86,219.99,219.95,0.67]
[1760045002476,11.36412292,220.0,219.95,0.67]
[1760045002671,34.51,219.99,219.93,21.47]
[1760045002869,50.41981407,219.99,219.93,21.47]
[1760045004472,4.54607446,219.97,219.93,21.47]
[1760045004665,33.8,219.96,219.93,21.47]
[1760045006196,33.8,219.96,219.93,20.8]
[1760045006686,4.54648783,219.95,219.93,20.8]
[1760045006987,4.54648783,219.95,219.91,0.67]
[1760045007181,4.54648783,219.95,219.92,0.67]
[1760045009589,4.54648783,219.95,219.91,20.8]
[1760045009760,4.54648783,219.95,219.91,21.47]
[1760045009961,4.54648783,219.95,219.92,0.67]
[1760045010371,0.67,219.94,219.89,21.47]
[1760045010573,0.67,219.94,219.89,20.8]
[1760045010985,4.54648783,219.95,219.9,0.67]
[1760045011183,5.21648783,219.95,219.9,0.67]
[1760045011375,4.54690128,219.93,219.9,0.67]
[1760045011568,33.68,219.92,219.9,0.67]
[1760045012188,33.68,219.92,219.89,20.8]
[1760045012376,33.68,219.92,219.89,21.47]
[1760045013488,38.22719955,219.92,219.89,21.47]
[1760045013791,33.64,219.91,219.89,21.47]
[1760045013979,33.64,219.91,219.89,20.8]
[1760045014484,38.18736767,219.91,219.89,20.8]
[1760045014890,33.6,219.9,219.89,20.8]
[1760045016896,38.1475216,219.9,219.89,20.8]
[1760045017394,38.1475216,219.9,219.89,101.1]
[1760045019197,38.1475216,219.9,219.89,20.8]
[1760045019698,38.1475216,219.9,219.86,81.0]
[1760045019866,38.1475216,219.9,219.89,20.8]
[1760045022200,38.8575216,219.9,219.86,80.3]
[1760045022587,33.48,219.89,219.86,81.0]
[1760045022882,5.2575216,219.9,219.85,20.8]
[1760045022883,22.73149845,219.96,219.85,20.8]
[1760045023086,0.71,219.88,219.82,0.7]
[1760045023281,33.46,219.87,219.84,20.8]
[1760045023484,33.46,219.86,219.84,21.5]
[1760045023981,33.46,219.86,219.84,20.8]
[1760045024504,38.7183578,219.86,219.84,20.8]
[1760045024678,38.7183578,219.86,219.82,0.7]
[1760045025592,0.66,219.85,219.71,4.55145418]
[1760045025792,0.66,219.84,219.76,0.72]
[1760045025984,33.44,219.83,219.76,0.72]
[1760045026300,4.54938355,219.81,219.76,0.72]
[1760045026502,34.1,219.8,219.76,34.75099524]
[1760045027482,0.66,219.79,219.76,13.95099524]
[1760045027811,33.44,219.8,219.75,20.8]
[1760045028093,0.66,219.79,219.75,20.8]
[1760045028316,4.55000455,219.78,219.74,0.72]
[1760045028477,33.42,219.77,219.74,0.72]
[1760045028783,33.42,219.77,219.73,20.8]
[1760045028988,33.42,219.77,219.73,0.72]
[1760045029578,33.42,219.77,219.73,14.63604174]
[1760045029789,33.42,219.77,219.73,0.72]
[1760045030105,38.63029276,219.77,219.72,20.8]
[1760045030305,38.63029276,219.77,219.73,0.72]
[1760045030603,38.63029276,219.77,219.72,34.46462456]
[1760045030807,38.63029276,219.77,219.72,35.18462456]
[1760045031108,38.63029276,219.77,219.72,21.52]
[1760045031402,0.66,219.76,219.72,21.52]
[1760045031976,5.21049428,219.76,219.72,0.72]
[1760045032305,33.38,219.75,219.72,0.72]
[1760045032999,33.38,219.75,219.72,21.52]
[1760045033306,34.02,219.74,219.72,20.8]
[1760045033491,34.02,219.74,219.73,20.8]
[1760045034100,33.36,219.74,219.73,20.8]
[1760045034485,33.36,219.74,219.67,0.72]
[1760045034486,38.5708328,219.74,219.67,0.72]
[1760045034812,38.5708328,219.74,219.67,35.18711464]
[1760045036606,38.5708328,219.74,219.67,48.52116057]
[1760045036793,37.9108328,219.74,219.67,48.52116057]
[1760045037001,0.66,219.73,219.67,48.52116057]
[1760045037210,5.21123223,219.73,219.67,48.52116057]
[1760045040311,0.66,219.72,219.67,34.13404593]
[1760045040612,4.55123223,219.73,219.67,13.33404593]
[1760045040613,0.66,219.71,219.67,13.33404593]
[1760045040795,33.92,219.7,219.67,20.8]
[1760045040997,0.66,219.69,219.67,20.8]
[1760045041313,0.66,219.69,219.6,8.49101287]
[1760045041314,0.66,219.68,219.63,0.72]
[1760045041504,0.66,219.68,219.65,20.8]
[1760045041694,0.66,219.67,219.65,13.514156]
[1760045042010,37.81249021,219.66,219.63,0.72]
[1760045042185,33.24,219.65,219.64,20.8]
[1760045042387,33.24,219.65,219.61,0.72]
[1760045042715,33.9,219.65,219.61,35.19147446]
[1760045043105,33.9,219.65,219.61,21.52]
[1760045043408,33.24,219.65,219.61,20.8]
[1760045043591,0.68,219.64,219.56,0.69]
[1760045043795,4.55311205,219.63,219.57,13.67396704]
[1760045043997,33.92,219.62,219.6,20.8]
[1760045044201,0.68,219.61,219.6,20.8]
[1760045044510,0.68,219.61,219.57,13.67396704]
[1760045044688,0.68,219.61,219.6,20.8]
[1760045045911,0.68,219.64,219.6,21.49]
[1760045046308,33.2,219.64,219.62,20.8]
[1760045046503,33.2,219.64,219.62,232.0]
[1760045046703,33.2,219.64,219.62,232.69]
[1760045047109,33.2,219.64,219.62,246.36085146]
[1760045051396,0.68,219.68,219.63,0.69]
[1760045051818,33.16,219.67,219.63,0.69]
[1760045052117,33.14,219.66,219.63,0.69]
[1760045052920,0.68,219.67,219.63,0.69]
[1760045053100,33.14,219.65,219.63,0.69]
[1760045055498,33.14,219.65,219.63,80.3]
[1760045056233,33.1,219.65,219.63,80.3]
[1760045056410,33.08,219.65,219.63,80.3]
[1760045058305,33.06,219.64,219.63,80.3]
[1760045059916,0.68,219.64,219.63,80.3]
[1760045060237,33.72,219.64,219.63,80.3]
[1760045060728,33.04,219.64,219.63,80.3]
[1760045060925,33.72,219.64,219.63,80.3]
[1760045062227,33.02,219.64,219.63,80.3]
[1760045063031,33.0,219.64,219.63,80.3]
[1760045064332,32.98,219.64,219.63,80.3]
[1760045065029,33.66,219.64,219.63,80.3]
[1760045065215,32.98,219.64,219.63,80.3]
[1760045065534,33.66,219.64,219.63,80.3]
[1760045066407,38.21290475,219.64,219.63,80.3]
[1760045066624,33.66,219.64,219.63,80.3]
[1760045067625,38.21290475,219.64,219.63,80.3]
[1760045070336,37.53290475,219.64,219.63,80.3]
[1760045070705,38.21290475,219.64,219.63,80.3]
[1760045072934,5.23290475,219.64,219.63,80.3]
[1760045073233,32.88,219.64,219.63,80.3]
[1760045073535,32.86,219.64,219.63,0.71]
[1760045074934,32.86,219.64,219.6,26.06369122]
[1760045075131,0.68,219.66,219.61,0.71]
[1760045075441,32.86,219.65,219.62,20.8]
[1760045075736,32.86,219.65,219.62,21.51]
[1760045075929,33.54,219.65,219.62,21.51]
[1760045076131,38.09286362,219.65,219.62,20.8]
[1760045076528,32.82,219.64,219.62,20.8]
[1760045078632,5.23277131,219.65,219.62,20.8]
[1760045078827,32.82,219.63,219.62,20.8]
[1760045079719,5.23277131,219.65,219.62,20.8]
[1760045079922,32.78,219.64,219.62,20.8]
[1760045080338,32.78,219.63,219.62,20.8]
[1760045080727,5.23270626,219.65,219.62,20.8]
[1760045080930,32.78,219.64,219.62,20.8]
[1760045082239,32.78,219.64,219.62,101.1]
[1760045082436,5.23270626,219.65,219.62,101.1]
[1760045082645,32.76,219.63,219.62,101.1]
[1760045085130,32.76,219.63,219.62,80.3]
[1760045086746,5.23270626,219.65,219.62,80.3]
[1760045086944,32.74,219.64,219.62,80.3]
[1760045087847,5.23270626,219.65,219.62,80.3]
[1760045088045,32.7,219.64,219.62,80.3]
[1760045090936,33.42,219.64,219.62,80.3]
[1760045093644,32.62,219.63,219.62,80.3]
[1760045098562,5.27270744,219.65,219.62,80.96]
[1760045098755,32.6,219.63,219.62,80.96]
[1760045099463,32.6,219.63,219.62,80.3]
[1760045102259,33.32,219.63,219.62,80.3]
[1760045102694,37.87311205,219.63,219.62,80.3]
[1760045102962,49.25589218,219.63,219.56,80.3]
[1760045103264,0.66,219.62,219.56,101.1]
[1760045103566,0.66,219.61,219.56,80.3]
[1760045103869,4.55394143,219.59,219.53,13.67708404]
[1760045104099,33.2,219.58,219.52,14.62898065]
[1760045104265,0.66,219.57,219.52,13.96898065]
[1760045104465,0.66,219.56,219.51,34.47833124]
[1760045104770,33.22,219.55,219.51,20.8]
[1760045105082,0.66,219.54,219.51,20.8]
[1760045105280,0.66,219.53,219.51,20.8]
[1760045105579,32.54,219.52,219.51,20.8]
[1760045105779,32.54,219.52,219.49,14.33957866]
[1760045106177,32.54,219.52,219.49,35.13957866]
[1760045107090,33.2,219.52,219.49,48.1265812]
[1760045107560,33.2,219.52,219.49,34.44700254]
[1760045107970,32.54,219.52,219.49,48.127205]
[1760045108182,0.66,219.51,219.49,48.127205]
[1760045108576,0.66,219.51,219.49,34.44700254]
[1760045110291,0.66,219.51,219.49,114.74700254]
[1760045110792,3.80026035,219.65,219.49,114.74700254]
[1760045110793,37.73580865,219.5,219.49,13.68082632]
[1760045110989,37.73580865,219.5,219.48,0.1]
[1760045111180,0.66,219.49,219.48,0.1]
[1760045112277,5.21601621,219.49,219.48,0.1]
[1760045116080,37.73601621,219.49,219.48,0.1]
[1760045117014,5.21601621,219.49,219.48,0.1]
[1760045117201,0.66,219.54,219.48,0.76]
[1760045117387,32.52,219.53,219.48,0.76]
[1760045117722,33.18,219.53,219.49,0.66]
[1760045117876,33.18,219.53,219.49,80.96]
[1760045118081,0.66,219.52,219.49,80.3]
[1760045118596,0.66,219.52,219.49,93.98145023]
[1760045118798,32.52,219.51,219.49,93.98145023]
[1760045118988,32.52,219.51,219.49,80.3]
[1760045119191,37.0758034,219.51,219.49,80.3]
[1760045119810,37.7358034,219.51,219.49,80.3]
[1760045120509,0.66,219.5,219.49,80.3]
[1760045121106,5.21580865,219.5,219.49,80.3]
[1760045123911,5.21580865,219.5,219.48,0.1]
[1760045124096,0.66,219.49,219.48,0.1]
[1760045124297,33.18,219.49,219.48,0.1]
[1760045124898,37.07601621,219.49,219.48,0.1]
[1760045125404,37.73601621,219.49,219.48,0.1]
[1760045125908,4.55601621,219.49,219.48,0.1]
[1760045126091,37.07601621,219.49,219.48,0.1]
[1760045127913,37.73601621,219.49,219.48,0.1]
[1760045129900,37.73601621,219.49,219.48,80.4]
[1760045134804,5.21601621,219.49,219.48,80.4]
[1760045135005,37.73601621,219.49,219.48,80.4]
[1760045135818,5.21601621,219.49,219.48,80.4]
[1760045136026,37.73601621,219.49,219.48,80.4]
[1760045139720,5.21601621,219.49,219.48,80.4]
[1760045140023,37.73601621,219.49,219.48,80.4]
[1760045141618,37.73601621,219.49,219.48,0.1]
[1760045141923,12.04864624,219.52,219.48,0.1]
[1760045142118,32.52,219.51,219.48,0.76]
[1760045142321,33.18,219.51,219.48,0.1]
[1760045142498,0.66,219.5,219.48,0.1]
[1760045142917,4.55601621,219.49,219.48,0.1]
[1760045143098,37.07601621,219.49,219.48,0.1]
[1760045144026,4.55601621,219.49,219.48,0.1]
[1760045144426,37.07601621,219.49,219.48,0.1]
[1760045144911,37.73601621,219.49,219.48,0.1]
[1760045147007,32.52,219.49,219.48,0.1]
[1760045147638,32.52,219.49,219.48,80.4]
[1760045147933,37.77601621,219.49,219.48,80.4]
[1760045148136,4.55518607,219.53,219.48,0.76]
[1760045148307,32.52,219.52,219.48,0.76]
[1760045148506,33.22,219.52,219.48,14.44145023]
[1760045148928,0.7,219.51,219.48,0.1]
[1760045149132,33.22,219.5,219.48,0.1]
[1760045149428,32.52,219.49,219.48,0.1]
[1760045149813,33.22,219.49,219.48,0.1]
[1760045150141,37.07601621,219.49,219.48,0.1]
[1760045152451,37.77601621,219.49,219.48,0.1]
[1760045153152,37.07601621,219.49,219.48,0.1]
[1760045153519,37.07601621,219.49,219.48,80.4]
[1760045153720,32.52,219.49,219.48,80.4]
[1760045155338,37.77601621,219.49,219.48,80.4]
[1760045158545,5.25601621,219.49,219.48,80.4]
[1760045158746,37.75601621,219.49,219.48,80.4]
[1760045159849,37.05601621,219.49,219.48,80.4]
[1760045161050,4.55601621,219.49,219.48,80.4]
[1760045161262,37.75601621,219.49,219.48,80.4]
[1760045161731,32.5,219.49,219.48,0.76]
[1760045162860,37.05601621,219.49,219.48,0.76]
[1760045164256,37.05601621,219.49,219.48,0.1]
[1760045167156,37.72601621,219.49,219.48,0.1]
[1760045182993,37.05601621,219.49,219.48,0.1]
[1760045185578,37.72601621,219.49,219.48,0.1]
[1760045185885,37.05601621,219.49,219.48,0.1]
[1760045186093,37.72601621,219.49,219.48,0.1]
[1760045187181,11.38922571,219.51,219.48,0.1]
[1760045187182,0.67,219.51,219.48,0.1]
[1760045187387,0.67,219.49,219.48,0.1]
[1760045188186,5.22601621,219.49,219.48,0.1]
[1760045188569,16.10249142,219.49,219.48,0.1]
[1760045194198,16.10249142,219.49,219.48,1e-08]
[1760045195590,16.10249142,219.49,219.4,0.1]
[1760045195591,10.87647521,219.45,219.4,0.1]
[1760045195784,32.46,219.44,219.4,0.1]
[1760045195979,33.13,219.44,219.4,0.1]
[1760045196184,15.95041698,219.43,219.4,0.1]
[1760045196382,32.46,219.42,219.4,0.1]
[1760045196801,32.46,219.42,219.4,0.76]
[1760045198102,4.5576774,219.41,219.4,0.76]
[1760045200395,4.5576774,219.41,219.4,0.1]
[1760045200602,37.01748682,219.42,219.4,0.76]
[1760045200803,11.54647521,219.41,219.4,0.1]
[1760045201899,11.54647521,219.41,219.4,1e-08]
[1760045202094,44.00647521,219.41,219.4,1e-08]
[1760045202284,64.80647521,219.41,219.4,1e-08]
[1760045202693,69.36415261,219.41,219.4,1e-08]
[1760045202889,4.5576774,219.41,219.4,1e-08]
[1760045203095,37.0176774,219.41,219.4,1e-08]
[1760045203288,37.6876774,219.41,219.4,1e-08]
[1760045203685,48.56415261,219.41,219.4,1e-08]
[1760045204012,48.56415261,219.41,219.38,1e-08]
[1760045204013,10.87647521,219.4,219.38,1e-08]
[1760045204185,32.46,219.39,219.38,1e-08]
[1760045204386,33.13,219.39,219.38,1e-08]
[1760045204601,69.3645681,219.39,219.38,1e-08]
[1760045211815,36.9045681,219.39,219.38,1e-08]
[1760045212130,69.3645681,219.39,219.38,1e-08]
[1760045219522,36.9045681,219.39,219.38,1e-08]
[1760045219725,69.3445681,219.39,219.38,1e-08]
[1760045219959,36.9045681,219.39,219.38,1e-08]
[1760045220245,69.3445681,219.39,219.38,1e-08]
[1760045220450,10.87647521,219.38,219.35,0.1]
[1760045220654,32.44,219.37,219.35,0.1]
[1760045220829,33.12,219.37,219.35,0.1]
[1760045221245,0.68,219.36,219.35,0.1]
[1760045221424,33.12,219.36,219.35,0.1]
[1760045222732,43.31647521,219.36,219.35,0.1]
[1760045224226,47.87519147,219.36,219.35,0.1]
[1760045224426,48.53519147,219.36,219.35,0.1]
[1760045225228,15.43519147,219.36,219.35,0.1]
[1760045225555,47.87519147,219.36,219.35,0.1]
[1760045226535,48.53519147,219.36,219.35,0.1]
[1760045226949,47.87519147,219.36,219.35,0.1]
[1760045228656,47.87519147,219.36,219.35,0.77]
[1760045228657,36.99871626,219.36,219.35,0.77]
[1760045229358,4.55871626,219.36,219.35,0.77]
[1760045229562,36.99871626,219.36,219.35,0.77]
[1760045230064,32.44,219.36,219.35,0.77]
[1760045230756,36.99871626,219.36,219.35,0.77]
[1760045233853,43.58629406,219.44,219.35,0.77]
[1760045233854,4.55788514,219.4,219.35,81.07]
[1760045234056,4.55663902,219.46,219.38,20.8]
[1760045234358,10.87647521,219.44,219.38,80.97]
[1760045234671,32.44,219.43,219.39,0.67]
[1760045235167,32.44,219.43,219.4,0.67]
[1760045237165,4.55746969,219.42,219.4,0.67]
[1760045237369,32.42,219.41,219.4,0.67]
[1760045239348,36.9776774,219.41,219.4,0.67]
[1760045240243,4.5576774,219.41,219.4,0.67]
[1760045240448,36.9776774,219.41,219.4,0.67]
[1760045240650,4.5576774,219.41,219.4,0.67]
[1760045240849,36.9776774,219.41,219.4,0.67]
[1760045242775,4.5576774,219.41,219.4,80.97]
[1760045243269,36.9776774,219.41,219.4,80.97]
[1760045243448,4.5576774,219.41,219.4,80.97]
[1760045243769,32.42,219.41,219.4,80.97]
[1760045244975,36.9776774,219.41,219.4,80.97]
[1760045246378,15.95060867,219.43,219.4,80.97]
[1760045246608,32.4,219.42,219.4,80.97]
[1760045247762,4.5576774,219.41,219.4,80.97]
[1760045248169,36.9576774,219.41,219.4,80.97]
[1760045249775,15.95060867,219.43,219.4,80.97]
[1760045249957,32.4,219.42,219.4,80.97]
[1760045250161,32.4,219.41,219.4,80.3]
[1760045250383,21.55706754,219.47,219.35,0.1]
[1760045250384,32.4,219.42,219.38,25.35830066]
[1760045250589,32.4,219.42,219.41,13.68644357]
[1760045250778,32.4,219.42,219.41,14.35644357]
[1760045251586,10.02059233,219.47,219.41,18.91406614]
[1760045251766,32.4,219.46,219.42,0.67]
[1760045252379,32.4,219.46,219.43,13.68581921]
[1760045252577,32.4,219.46,219.44,0.67]
[1760045253073,36.95667229,219.46,219.44,0.67]
[1760045253273,4.55667229,219.46,219.45,0.65]
[1760045253469,36.95667229,219.46,219.45,0.65]
[1760045253992,36.95667229,219.46,219.44,13.68581921]
[1760045254292,36.95667229,219.46,219.45,0.65]
[1760045254476,32.4,219.46,219.45,0.65]
[1760045255693,32.4,219.46,219.45,13.68457064]
[1760045255893,37.60663902,219.46,219.45,13.68457064]
[1760045256192,37.60663902,219.46,219.41,80.3]
[1760045256386,0.65,219.45,219.41,93.98457064]
[1760045256582,33.03,219.44,219.41,80.3]
[1760045256785,0.65,219.43,219.41,80.3]
[1760045256981,32.38,219.42,219.41,80.3]
[1760045257299,33.03,219.42,219.41,80.3]
[1760045257995,37.58746969,219.42,219.41,80.3]
[1760045258472,5.20746969,219.42,219.41,80.3]
[1760045258670,37.58746969,219.42,219.41,80.3]
[1760045260370,37.58746969,219.42,219.38,80.3]
[1760045260576,0.65,219.41,219.37,13.68894161]
[1760045260778,33.03,219.4,219.35,0.1]
[1760045260972,33.03,219.4,219.35,80.4]
[1760045261289,0.65,219.39,219.35,94.08894161]
[1760045261488,32.38,219.38,219.35,94.73894161]
[1760045262298,4.55850845,219.37,219.35,94.73894161]
[1760045262505,32.38,219.36,219.35,94.73894161]
[1760045263301,32.38,219.36,219.35,81.05]
[1760045263703,32.38,219.36,219.35,94.74081574]
[1760045264806,32.38,219.39,219.35,94.74081574]
[1760045264993,32.38,219.39,219.36,0.65]
[1760045265893,32.38,219.39,219.37,13.68894161]
[1760045266092,32.38,219.39,219.38,0.69]
[1760045266485,32.38,219.39,219.38,80.99]
[1760045266890,32.38,219.39,219.38,94.67894161]
[1760045269302,4.55769169,219.41,219.38,94.67894161]
[1760045269607,32.38,219.39,219.38,94.67894161]
[1760045269782,32.38,219.39,219.38,80.99]
[1760045270209,32.38,219.39,219.38,94.67894161]
[1760045270785,32.38,219.39,219.38,80.99]
[1760045273089,32.36,219.39,219.38,80.99]
[1760045273586,32.36,219.39,219.38,80.3]
[1760045277317,37.57809289,219.39,219.38,80.3]
[1760045278007,36.91809289,219.39,219.38,80.3]
[1760045278812,37.57809289,219.39,219.38,80.3]
[1760045279012,36.91809289,219.39,219.38,80.3]
[1760045279214,32.36,219.39,219.38,80.3]
[1760045280907,32.36,219.39,219.38,80.99]
[1760045281411,32.36,219.39,219.38,80.3]
[1760045282912,33.07,219.39,219.38,80.3]
[1760045283596,32.36,219.39,219.38,80.3]
[1760045284016,4.55794939,219.4,219.38,80.3]
[1760045284224,32.36,219.39,219.38,80.3]
[1760045285227,5.2679052,219.4,219.38,80.3]
[1760045285520,32.34,219.39,219.38,80.3]
[1760045286710,37.60809289,219.39,219.38,80.3]
[1760045287319,33.05,219.39,219.38,80.3]
[1760045288226,0.71,219.39,219.38,80.3]
[1760045288413,33.05,219.39,219.38,80.3]
[1760045289025,37.60809289,219.39,219.38,80.3]
[1760045289328,33.05,219.39,219.38,80.3]
[1760045289924,32.34,219.39,219.38,80.3]
[1760045291528,33.05,219.39,219.38,80.3]
[1760045292034,32.34,219.39,219.38,80.3]
[1760045292839,33.05,219.39,219.38,80.3]
[1760045293429,32.34,219.39,219.38,80.3]
[1760045294430,32.34,219.39,219.38,80.99]
[1760045295125,4.55768681,219.41,219.38,80.3]
[1760045295333,32.34,219.4,219.38,80.3]
[1760045295727,32.34,219.39,219.38,80.3]
[1760045300240,4.55790706,219.4,219.38,80.3]
[1760045300537,32.32,219.39,219.38,80.3]
[1760045301140,4.55790706,219.4,219.38,80.3]
[1760045301322,32.32,219.39,219.38,80.3]
[1760045304946,36.87809289,219.39,219.38,80.3]
[1760045306428,37.58809289,219.39,219.38,80.3]
[1760045307139,36.87809289,219.39,219.38,80.3]
[1760045307840,37.58809289,219.39,219.38,80.3]
[1760045308154,36.87809289,219.39,219.38,80.3]
[1760045308931,37.58809289,219.39,219.38,80.3]
[1760045309141,37.56809289,219.39,219.38,80.3]
[1760045309340,37.56809289,219.39,219.36,0.69]
[1760045309519,48.96332512,219.39,219.35,0.1]
[1760045311431,10.87647521,219.38,219.35,0.1]
[1760045311632,32.3,219.37,219.35,0.1]
[1760045311950,33.01,219.37,219.35,0.1]
[1760045313249,4.55871626,219.36,219.35,0.1]
[1760045313838,5.22871626,219.36,219.35,0.1]
[1760045320330,37.52871626,219.36,219.35,0.1]
[1760045321047,5.22871626,219.36,219.35,0.1]
[1760045321254,37.52871626,219.36,219.35,0.1]
[1760045327366,48.40519147,219.36,219.35,1e-08]
[1760045330070,16.10519147,219.36,219.35,1e-08]
[1760045330250,48.38519147,219.36,219.35,1e-08]
[1760045337878,47.71519147,219.36,219.35,1e-08]
[1760045338268,48.42519147,219.36,219.35,1e-08]
[1760045340790,59.11198213,219.36,219.32,2.41298208]
[1760045341088,59.82198213,219.36,219.32,2.41298208]
[1760045341464,59.11198213,219.36,219.33,0.68]
[1760045342182,59.11198213,219.36,219.32,1.73298208]
[1760045342381,59.82198213,219.36,219.32,2.41298208]
[1760045346296,0.71,219.35,219.32,1.73298208]
[1760045346496,31.76,219.34,219.32,1.73298208]
[1760045347193,4.5593398,219.33,219.32,1.73298208]
[1760045351005,4.5593398,219.33,219.32,2.40298208]
[1760045351377,4.5593398,219.33,219.32,1.90298208]
[1760045352299,4.5593398,219.33,219.32,1.23298208]
[1760045353400,4.5593398,219.33,219.31,0.1]
[1760045353589,32.24,219.32,219.31,0.1]
[1760045354390,36.79954769,219.32,219.31,13.7951907]
[1760045354597,36.79954769,219.32,219.31,0.1]
[1760045356201,36.79954769,219.32,219.31,0.77]
[1760045356407,36.79954769,219.32,219.31,0.1]
[1760045356592,36.79954769,219.32,219.31,13.7951907]
[1760045357193,36.79954769,219.32,219.31,14.4651907]
[1760045359501,0.71,219.34,219.31,14.4651907]
[1760045359799,15.22322922,219.37,219.31,14.4651907]
[1760045359800,32.24,219.33,219.32,0.67]
[1760045360406,32.24,219.33,219.32,14.36269038]
[1760045364891,32.22,219.33,219.32,14.36269038]
[1760045365815,4.55830066,219.38,219.32,14.36269038]
[1760045366019,32.22,219.37,219.33,0.67]
[1760045366594,32.22,219.37,219.34,13.69081574]
[1760045366798,4.55871626,219.36,219.35,0.67]
[1760045367424,4.55809289,219.39,219.35,80.97]
[1760045367618,32.22,219.38,219.36,0.67]
[1760045368712,32.22,219.38,219.37,13.68956626]
[1760045369023,32.22,219.38,219.37,94.65956626]
[1760045375820,37.46830066,219.38,219.37,93.98956626]
[1760045376256,36.77830066,219.38,219.37,93.98956626]
[1760045385355,36.73830066,219.38,219.37,93.98956626]
[1760045387269,4.55830066,219.38,219.37,93.98956626]
[1760045387456,36.73830066,219.38,219.37,93.98956626]
[1760045389937,4.55830066,219.38,219.37,93.98956626]
[1760045390242,36.73830066,219.38,219.37,93.98956626]
[1760045391144,0.69,219.39,219.37,13.68956626]
[1760045391452,32.16,219.38,219.37,13.68956626]
[1760045391967,32.16,219.38,219.37,14.37956626]
[1760045392254,32.16,219.38,219.37,13.68956626]
[1760045393042,32.16,219.38,219.37,14.37956626]
[1760045395060,32.16,219.38,219.37,13.68956626]
[1760045395449,32.16,219.38,219.37,14.37956626]
[1760045395865,32.16,219.38,219.37,13.68956626]
[1760045396065,32.16,219.38,219.37,14.37956626]
[1760045396460,0.66,219.44,219.37,18.93800599]
[1760045396660,32.16,219.43,219.38,0.69]
[1760045396857,32.82,219.43,219.38,0.69]
[1760045397257,32.82,219.43,219.39,13.68769248]
[1760045397460,0.66,219.42,219.39,14.37769248]
[1760045397653,32.16,219.41,219.39,14.37769248]
[1760045398054,32.16,219.41,219.39,0.69]
[1760045398256,32.16,219.41,219.4,13.68769248]
[1760045398557,32.16,219.41,219.4,14.37769248]
[1760045398762,32.16,219.41,219.4,13.68769248]
[1760045400067,37.3776774,219.41,219.4,13.68769248]
[1760045400254,37.3776774,219.41,219.38,80.3]
[1760045400457,0.66,219.4,219.38,80.3]
[1760045400667,32.14,219.39,219.38,80.3]
[1760045400863,32.8,219.39,219.33,80.3]
[1760045401060,0.66,219.38,219.32,101.1]
[1760045401261,32.8,219.37,219.32,101.1]